[Event "44th Chess Olympiad Open 2022"]
[Site "Chennai"]
[Date "2022.08.08"]
[Round "10.1"]
[White "Praggnanandhaa R"]
[Black "Sindarov, Javokhir"]
[Result "1-0"]
[WhiteElo "2648"]
[BlackElo "2629"]
[Annotator "RC"]
[PlyCount "153"]
[EventDate "2022.??.??"]
[TimeControl "60"]

1. d4 {[%emt 0:00:43]} Nf6 {[%emt 0:00:08]} 2. c4 {[%emt 0:00:06]} g6 {[%emt 0:
00:00]} 3. Nc3 {[%emt 0:00:10]} Bg7 {[%emt 0:00:06]} 4. e4 {[%emt 0:00:08]} d6
{[%emt 0:00:03]} 5. Nf3 {[%emt 0:00:54]} O-O {[%emt 0:00:41]} 6. Be2 {[%emt 0:
00:00]} e5 {[%emt 0:01:05]} 7. O-O {[%emt 0:00:08]} h6 {[%emt 0:00:30]} 8. Re1
{[%emt 0:01:08]} Nbd7 {[%emt 0:02:17]} 9. Qc2 {[%emt 0:01:13]} Re8 {[%emt 0:00:
00]} 10. dxe5 {[%emt 0:02:06]} dxe5 {[%emt 0:02:12]} 11. Be3 {[%emt 0:00:30]}
c6 {[%emt 0:10:54]} 12. Na4 {[%emt 0:08:21]} Qc7 {[%emt 0:13:01]} 13. c5 {
[%emt 0:12:11]} b5 {[%emt 0:02:23]} 14. cxb6 {[%emt 0:00:17]} axb6 {[%emt 0:00:
00]} 15. h3 {[%emt 0:07:20]} Qb8 {[%emt 0:15:19]} 16. Red1 {[%emt 0:14:29]} b5
{[%emt 0:08:02]} 17. Nc5 {[%emt 0:03:17]} Nxc5 {[%emt 0:02:33]} 18. Bxc5 {
[%emt 0:00:58]} Be6 {[%emt 0:04:27]} 19. Bd6 {[%emt 0:08:58]} Qb6 {[%emt 0:00:
00]} 20. Bxe5 {[%emt 0:05:13]} Rxa2 {[%emt 0:12:56]} 21. Rxa2 {[%emt 0:02:43]}
Bxa2 {[%emt 0:00:15]} 22. Bxf6 {[%emt 0:05:40]} Bxf6 {[%emt 0:00:02]} 23. b3 {
[%emt 0:00:19]} Qa5 {[%emt 0:01:57]} 24. Qxc6 {[%emt 0:11:01]} Re6 {[%emt 0:00:
00]} 25. Qc8+ {[%emt 0:01:01]} Kg7 {[%emt 0:00:47]} 26. Qc2 {[%emt 0:03:52]}
Qa3 {[%emt 0:01:14]} 27. e5 {[%emt 0:01:16]} Bxe5 {[%emt 0:00:25]} 28. Nxe5 {
[%emt 0:01:06]} Rxe5 {[%emt 0:00:06]} 29. Qc3 {[%emt 0:00:55]} Qc5 {[%emt 0:00:
00]} 30. Qb2 {[%emt 0:01:12]} Bxb3 {[%emt 0:00:16]} 31. Re1 {[%emt 0:00:50]}
Be6 {[%emt 0:05:07]} 32. Bg4 {[%emt 0:00:56]} Kf6 {[%emt 0:00:05]} 33. Kh2 {
[%emt 0:00:50]} g5 {[%emt 0:00:34]} 34. g3 {[%emt 0:00:26]} Bxg4 {[%emt 0:00:
00]} 35. f4 {[%emt 0:00:33]} Bf5 {[%emt 0:01:28]} 36. Rxe5 {[%emt 0:04:59]}
Qc2+ {[%emt 0:00:15]} 37. Qxc2 {[%emt 0:00:07]} Bxc2 {[%emt 0:00:02]} 38. Rxb5
{[%emt 0:00:32]} Kg6 {[%emt 0:00:12]} 39. Rb4 {[%emt 0:00:57]} f6 {[%emt 0:00:
00]} 40. Kg2 {[%emt 0:00:58]} Bd3 {[%emt 0:00:18]} 41. Kf2 {[%emt 0:09:08]} Ba6
{[%emt 0:01:55]} 42. g4 {[%emt 0:05:57]} gxf4 {[%emt 0:00:42]} 43. Rxf4 {
[%emt 0:00:29]} h5 {[%emt 0:01:19]} 44. gxh5+ {[%emt 0:00:28]} Kxh5 {[%emt 0:
00:00]} 45. Rxf6 {[%emt 0:00:19]} Bd3 {[%emt 0:00:05]} 46. Kg3 {[%emt 0:00:46]}
Bg6 {[%emt 0:00:23]} 47. Ra6 {[%emt 0:00:25]} Bd3 {[%emt 0:00:27]} 48. Ra5+ {
[%emt 0:00:14]} Kh6 {[%emt 0:00:13]} 49. Kh4 {[%emt 0:00:47]} Kg6 {[%emt 0:00:
00]} 50. Rg5+ {[%emt 0:00:19]} Kh6 {[%emt 0:00:23]} 51. Rd5 {[%emt 0:00:10]}
Bc2 {[%emt 0:00:09]} 52. Rd6+ {[%emt 0:00:17]} Kg7 {[%emt 0:00:34]} 53. Kg5 {
[%emt 0:00:17]} Bb1 {[%emt 0:00:08]} 54. Rd7+ {[%emt 0:00:45]} Kg8 {[%emt 0:00:
00]} 55. Rc7 {[%emt 0:00:32]} Bd3 {[%emt 0:00:11]} 56. Kh6 {[%emt 0:01:13]} Bf5
{[%emt 0:00:33]} 57. Rg7+ {[%emt 0:02:38]} Kf8 {[%emt 0:00:03]} 58. Rg3 {
[%emt 0:01:48]} Bc2 {[%emt 0:00:20]} 59. Rg2 {[%emt 0:04:44]} Be4 {[%emt 0:00:
00]} 60. Rg1 {[%emt 0:01:12]} Kf7 {[%emt 0:00:58]} 61. Rg4 {[%emt 0:03:31]} Bd3
{[%emt 0:01:07]} 62. Rg3 {[%emt 0:00:54]} Bc2 {[%emt 0:00:21]} 63. Rg2 {
[%emt 0:01:30]} Bd3 {[%emt 0:00:55]} 64. Rg7+ {[%emt 0:00:05]} Kf8 {[%emt 0:00:
00]} 65. Rg3 {[%emt 0:00:02]} Bc2 {[%emt 0:00:14]} 66. h4 {[%emt 0:02:03]} Kf7
{[%emt 0:00:11]} 67. Rc3 {[%emt 0:01:35]} Bb1 {[%emt 0:00:05]} 68. Rf3+ {
[%emt 0:00:11]} Kg8 {[%emt 0:00:06]} 69. Rg3+ {[%emt 0:00:09]} Kf7 {[%emt 0:00:
00]} 70. Rg7+ {[%emt 0:00:06]} Kf8 {[%emt 0:00:52]} 71. Rg5 {[%emt 0:00:19]}
Kf7 {[%emt 0:12:55]} 72. Kh5 {[%emt 0:00:23]} Kf6 {[%emt 0:00:15]} 73. Kg4 {
[%emt 0:00:22]} Bc2 {[%emt 0:00:29]} 74. h5 {[%emt 0:00:48]} Bd1+ {[%emt 0:00:
00]} 75. Kf4 {[%emt 0:00:07]} Bc2 {[%emt 0:00:05]} 76. h6 {[%emt 0:00:29]} Bg6
{[%emt 0:00:14]} 77. Rg1 {[%emt 0:00:08]} 1-0

[Event "44th Chess Olympiad Open 2022"]
[Site "Chennai"]
[Date "2022.08.08"]
[Round "10.1"]
[White "Yakubboev, Nodirbek"]
[Black "Sarin Nihal"]
[Result "1/2-1/2"]
[WhiteElo "2620"]
[BlackElo "2651"]
[Annotator "RC"]
[PlyCount "93"]
[EventDate "2022.??.??"]
[TimeControl "60"]

1. e4 {[%emt 0:00:06]} c6 {[%emt 0:00:29]} 2. Nf3 {[%emt 0:08:06]} d5 {[%emt 0:
00:00]} 3. Nc3 {[%emt 0:00:44]} dxe4 {[%emt 0:00:25]} 4. Nxe4 {[%emt 0:00:25]}
Nf6 {[%emt 0:00:06]} 5. Nxf6+ {[%emt 0:00:48]} exf6 {[%emt 0:00:06]} 6. Bc4 {
[%emt 0:00:09]} Bd6 {[%emt 0:22:17]} 7. Qe2+ {[%emt 0:02:56]} Qe7 {[%emt 0:00:
00]} 8. Qxe7+ {[%emt 0:00:08]} Kxe7 {[%emt 0:00:04]} 9. O-O {[%emt 0:00:11]}
Re8 {[%emt 0:04:31]} 10. Re1+ {[%emt 0:09:37]} Kf8 {[%emt 0:00:07]} 11. Rxe8+ {
[%emt 0:00:06]} Kxe8 {[%emt 0:00:02]} 12. d4 {[%emt 0:00:17]} Bf5 {[%emt 0:00:
00]} 13. c3 {[%emt 0:01:47]} Nd7 {[%emt 0:10:58]} 14. Bf1 {[%emt 0:04:59]} Be6
{[%emt 0:18:30]} 15. c4 {[%emt 0:03:58]} f5 {[%emt 0:04:29]} 16. b3 {[%emt 0:
00:00]} Nf6 {[%emt 0:09:53]} 17. Bb2 {[%emt 0:00:12]} Be7 {[%emt 0:05:42]} 18.
Re1 {[%emt 0:01:58]} h6 {[%emt 0:00:03]} 19. Bd3 {[%emt 0:01:41]} Rd8 {[%emt 0:
00:00]} 20. Nh4 {[%emt 0:06:12]} f4 {[%emt 0:01:09]} 21. Bf5 {[%emt 0:22:02]}
g5 {[%emt 0:03:36]} 22. Ng6 {[%emt 0:00:19]} fxg6 {[%emt 0:01:39]} 23. Bxe6 {
[%emt 0:00:06]} Kf8 {[%emt 0:00:03]} 24. g3 {[%emt 0:04:22]} Ne8 {[%emt 0:00:
00]} 25. Re4 {[%emt 0:07:54]} Nd6 {[%emt 0:02:20]} 26. Re2 {[%emt 0:00:29]} Bf6
{[%emt 0:00:03]} 27. Kg2 {[%emt 0:02:16]} Nf5 {[%emt 0:02:14]} 28. Bxf5 {
[%emt 0:07:22]} gxf5 {[%emt 0:00:04]} 29. gxf4 {[%emt 0:00:27]} Bxd4 {[%emt 0:
00:00]} 30. Rd2 {[%emt 0:01:32]} Bf6 {[%emt 0:00:58]} 31. Rxd8+ {[%emt 0:01:08]
} Bxd8 {[%emt 0:00:08]} 32. fxg5 {[%emt 0:00:26]} hxg5 {[%emt 0:00:07]} 33. h3
{[%emt 0:00:25]} Bc7 {[%emt 0:04:22]} 34. Bc1 {[%emt 0:03:02]} g4 {[%emt 0:00:
00]} 35. hxg4 {[%emt 0:00:24]} fxg4 {[%emt 0:00:05]} 36. f4 {[%emt 0:00:35]}
gxf3+ {[%emt 0:00:05]} 37. Kxf3 {[%emt 0:00:05]} Ke7 {[%emt 0:00:13]} 38. Ke4 {
[%emt 0:00:06]} Ke6 {[%emt 0:00:03]} 39. Be3 {[%emt 0:00:17]} a6 {[%emt 0:00:
00]} 40. a4 {[%emt 0:00:06]} b5 {[%emt 0:00:08]} 41. axb5 {[%emt 0:30:25]} axb5
{[%emt 0:30:06]} 42. cxb5 {[%emt 0:00:21]} cxb5 {[%emt 0:00:05]} 43. Kd4 {
[%emt 0:00:42]} Bb6+ {[%emt 0:00:06]} 44. Ke4 {[%emt 0:00:04]} Bc7 {[%emt 0:00:
00]} 45. Kd4 {[%emt 0:00:05]} Bb6+ {[%emt 0:00:03]} 46. Ke4 {[%emt 0:00:05]}
Bc7 {[%emt 0:00:03]} 47. Bc1 {[%emt 0:00:22]} 1/2-1/2

[Event "44th Chess Olympiad Open 2022"]
[Site "Chennai"]
[Date "2022.08.08"]
[Round "10.1"]
[White "Vakhidov, Jakhongir"]
[Black "Adhiban, B..."]
[Result "1/2-1/2"]
[WhiteElo "2564"]
[BlackElo "2598"]
[Annotator "RC"]
[PlyCount "66"]
[EventDate "2022.??.??"]
[TimeControl "60"]

1. c4 {[%emt 0:00:31]} e5 {[%emt 0:00:08]} 2. Nc3 {[%emt 0:01:34]} Nf6 {
[%emt 0:00:11]} 3. Nf3 {[%emt 0:00:05]} e4 {[%emt 0:00:14]} 4. Ng5 {[%emt 0:00:
00]} c6 {[%emt 0:00:04]} 5. Ngxe4 {[%emt 0:00:07]} Nxe4 {[%emt 0:00:05]} 6.
Nxe4 {[%emt 0:00:09]} d5 {[%emt 0:00:04]} 7. cxd5 {[%emt 0:00:09]} cxd5 {
[%emt 0:00:03]} 8. Ng3 {[%emt 0:00:11]} h5 {[%emt 0:00:06]} 9. e3 {[%emt 0:00:
00]} h4 {[%emt 0:00:08]} 10. Ne2 {[%emt 0:00:06]} Nc6 {[%emt 0:00:05]} 11. d4 {
[%emt 0:00:06]} Qf6 {[%emt 0:00:10]} 12. Nc3 {[%emt 0:00:07]} Qg6 {[%emt 0:00:
00]} 13. f3 {[%emt 0:00:07]} Bd6 {[%emt 0:01:00]} 14. Kf2 {[%emt 0:00:07]} Bg3+
{[%emt 0:00:31]} 15. Kg1 {[%emt 0:00:02]} Bd6 {[%emt 0:00:27]} 16. Kf2 {
[%emt 0:00:35]} Bg3+ {[%emt 0:00:34]} 17. Kg1 {[%emt 0:00:01]} Bd6 {[%emt 0:00:
00]} 18. Nb5 {[%emt 0:10:47]} Bb8 {[%emt 0:00:23]} 19. Bd3 {[%emt 0:04:35]} Qf6
{[%emt 0:12:16]} 20. Nc3 {[%emt 0:08:38]} Be6 {[%emt 0:01:11]} 21. Kf2 {
[%emt 0:04:30]} O-O {[%emt 0:18:14]} 22. f4 {[%emt 0:02:48]} Re8 {[%emt 0:00:
00]} 23. Qf3 {[%emt 0:01:17]} Nxd4 {[%emt 0:13:26]} 24. exd4 {[%emt 0:05:46]}
Bg4 {[%emt 0:00:26]} 25. Re1 {[%emt 0:19:08]} Qxd4+ {[%emt 0:00:59]} 26. Be3 {
[%emt 0:00:01]} Qxd3 {[%emt 0:00:10]} 27. Qxg4 {[%emt 0:00:40]} d4 {[%emt 0:00:
00]} 28. Rad1 {[%emt 0:00:26]} dxe3+ {[%emt 0:01:42]} 29. Kg1 {[%emt 0:00:02]}
Qc4 {[%emt 0:10:05]} 30. Nd5 {[%emt 0:05:40]} Qc6 {[%emt 0:06:21]} 31. Qg5 {
[%emt 0:08:08]} e2 {[%emt 0:04:01]} 32. Rc1 {[%emt 0:00:05]} Qe6 {[%emt 0:00:
00]} 33. Rc2 {[%emt 0:03:56]} f6 {[%emt 0:03:49]} 1/2-1/2

[Event "44th Chess Olympiad Open 2022"]
[Site "Chennai"]
[Date "2022.08.08"]
[Round "10.2"]
[White "Mamedyarov, Shakhriyar"]
[Black "Sargissian, Gabriel"]
[Result "0-1"]
[WhiteElo "2759"]
[BlackElo "2698"]
[Annotator "TA"]
[PlyCount "134"]
[EventDate "2022.??.??"]
[TimeControl "60"]

{[%evp 11,134,7,4,0,13,7,22,0,0,0,0,0,0,0,0,0,0,0,10,25,16,-200,-197,-227,-165,
-147,-132,-360,-370,-354,-304,-297,-275,-343,-333,-332,-322,-319,-302,-307,
-320,-322,-318,-318,-324,-323,-300,-322,-296,-346,-341,-335,-239,-304,-181,
-187,-208,-192,-159,-208,-203,-200,-182,-270,-257,-259,-258,-325,-252,-263,
-248,-206,-216,-257,-259,-225,-115,-203,-209,-254,-218,-589,-582,-649,-649,
-634,-623,-600,-610,-604,-568,-517,-473,-12829,-12828,-12830,-1542,-1389,-56,
-1538,-1155,-4795,-2290,-2029,-1628,-1540,-1416,-12826,-12825,-12831,-12831,
-2075,-1928,-12838,-12839,-12841,-12841,-12842,-12842,-12842,-12840,-12841,
-12841,-12841,-12841]} 1. d4 {[%emt 0:00:31]} d5 {[%emt 0:00:15]} 2. c4 {
[%emt 0:00:07]} e6 {[%emt 0:00:23]} 3. Nf3 {[%emt 0:00:39]} Nf6 {[%emt 0:00:18]
} 4. Nc3 {[%emt 0:00:09]} Be7 {[%emt 0:00:10]} 5. Bf4 {[%emt 0:00:12]} O-O {
[%emt 0:01:12]} 6. e3 {[%emt 0:00:04]} Nbd7 {[%emt 0:01:44]} 7. c5 {[%emt 0:00:
00] D37: Queen's Gambit Declined: 5 Bf4.} c6 {[%emt 0:01:57][%cal Yc7c6,Yc6b5,
Yb5b4,Yb4b3]} 8. b4 {[%emt 0:00:19] Recently 8.h3 got a lot of attention.} b6 {
[%emt 0:00:59]} 9. h4 {[%emt 0:00:11] The position is equal.} a5 {[%emt 0:01:
38]} 10. a3 {[%emt 0:00:09] [#]} Ba6 $5 $146 {[%emt 0:01:40] An interesting
novelty.} ({Predecessor:} 10... Ne4 11. Nxe4 dxe4 12. Ne5 Nxe5 13. Bxe5 Qd5 14.
Be2 b5 15. h5 Bb7 16. O-O axb4 17. axb4 Rxa1 18. Qxa1 {0-1 (42) Shankland,S 
(2709)-Nakamura,H (2750) Chess.com INT 2022}) 11. Bxa6 {[%emt 0:01:47]} Rxa6 {
[%emt 0:00:11]} 12. b5 {[%emt 0:00:15]} cxb5 {[%emt 0:00:00]} 13. c6 {[%emt 0:
00:03]} Qc8 $36 {[%emt 0:01:04] Black has some pressure.} 14. c7 {[%emt 0:00:
13]} b4 {[%emt 0:01:46]} 15. Nb5 {[%emt 0:00:12]} a4 {[%emt 0:01:14]} 16. Qc2 {
[%emt 0:00:15]} (16. Rc1 $1 $11 Ne8 17. axb4) 16... b3 $19 {[%emt 0:08:43]} 17.
Qe2 {[%emt 0:16:39]} Ra8 {[%emt 0:07:24]} 18. Rc1 {[%emt 0:05:04]} Qa6 {
[%emt 0:04:28]} 19. Nd6 $2 {[%emt 0:10:40] Against Rfc8} (19. h5 $17) 19... b5
{[%emt 0:10:29]} 20. Nxb5 {[%emt 0:04:20]} Rfc8 {[%emt 0:04:15]} 21. Nd2 {
[%emt 0:00:12]} Qb6 {[%emt 0:03:37] Strongly threatening ...Ra5.} 22. Nb1 {
[%emt 0:00:17]} Ra5 {[%emt 0:02:37]} 23. N5c3 {[%emt 0:00:14]} ({Much worse is
} 23. N1c3 Ne4 24. O-O (24. Nxe4 $2 dxe4 25. d5 Rxb5 $19) 24... Nxc3 25. Nxc3
Bxa3) 23... Bd6 {[%emt 0:05:08]} 24. Bxd6 {[%emt 0:05:02]} Qxd6 {[%emt 0:03:06]
} 25. O-O {[%emt 0:00:03]} Qxc7 {[%emt 0:00:00]} 26. Na2 {[%emt 0:00:14]} Qb7 {
[%emt 0:01:34]} 27. Rxc8+ {[%emt 0:00:04]} Qxc8 {[%emt 0:00:06]} 28. Rc1 {
[%emt 0:00:01]} Qb7 {[%emt 0:01:08]} 29. Nb4 {[%emt 0:02:59]} Ra8 {[%emt 0:00:
15]} 30. f3 {[%emt 0:03:17]} Rc8 {[%emt 0:00:00] Inhibits Rc6.} 31. Rc3 {
[%emt 0:00:02]} h5 {[%emt 0:01:24]} 32. Kf2 {[%emt 0:03:18]} Rc7 {[%emt 0:04:
42]} (32... Ra8 $142 {...Qb8 is the strong threat.} 33. Rc6 Ne8) 33. Qa6 {
[%emt 0:01:51]} Qxa6 {[%emt 0:02:40]} 34. Nxa6 {[%emt 0:00:03]} Rb7 {[%emt 0:
01:44]} 35. Rc6 {[%emt 0:09:30]} (35. Rc8+ $17 Kh7 36. Ke2) 35... Ne8 {[%emt 0:
03:40]} 36. Ke2 {[%emt 0:04:25]} Kf8 {[%emt 0:00:00]} 37. e4 {[%emt 0:05:52]} (
37. Nc5 $142 Nxc5 38. dxc5) 37... Rb6 {[%emt 0:00:00]} 38. Rxb6 {[%emt 0:01:18]
} Nxb6 {[%emt 0:00:05] Endgame KNN-KNN} 39. e5 {[%emt 0:00:09]} Ke7 {[%emt 0:
00:37]} 40. Kd3 {[%emt 0:01:54]} Kd8 {[%emt 0:05:48]} 41. Nc5 {[%emt 0:37:33]}
Nc7 {[%emt 0:32:08]} 42. Nc3 {[%emt 0:00:13]} Nc4 {[%emt 0:04:35]} 43. g4 {
[%emt 0:06:46]} g6 {[%emt 0:01:27]} ({Better is} 43... b2 $19 {[%cal Yc7b5]
White must now prevent ...Nb5!} 44. Kc2 Nxa3+ 45. Kxb2 Ncb5) 44. gxh5 {[%emt 0:
08:05]} (44. N5xa4 $17 {might work better.} Nxa3 45. Ne2) 44... gxh5 {[%emt 0:
00:00]} 45. f4 {[%emt 0:00:00]} Ke7 {[%emt 0:00:00]} ({Not} 45... Nxa3 46.
N3xa4 Nc2 47. Nxb3 Ne1+ 48. Ke2 $17) 46. N3xa4 $2 {[%emt 0:00:00]} (46. N5xa4 {
is a better chance.} Nxa3 47. Ne2) 46... b2 {[%emt 0:00:00]} 47. Kc2 {[%emt 0:
00:00]} Nb5 {[%emt 0:00:00]} 48. Nxb2 {[%emt 0:00:00]} Nbxa3+ {[%emt 0:00:00]}
49. Kb3 {[%emt 0:00:00][%cal Yf4f5]} Nxb2 {[%emt 0:00:00]} 50. Kxb2 {[%emt 0:
00:00] KN-KN} Nc4+ {[%emt 0:00:00]} 51. Kc3 {[%emt 0:00:00]} Ne3 $1 {[%emt 0:
00:00]} 52. f5 {[%emt 0:00:00]} (52. Nb3 $142 Ng2 53. Nd2) 52... Nxf5 {[%emt 0:
00:00]} 53. Nd3 {[%emt 0:00:00]} Kf8 {[%emt 0:00:00]} ({Weaker is} 53... Nxh4
54. Nf4 $17) (53... f6 $142 54. Nf4 fxe5 55. dxe5 Nxh4 56. Nxh5 Nf3) 54. Nf4 {
[%emt 0:00:00]} Ng3 $1 {[%emt 0:00:00]} 55. Kd3 $2 {[%emt 0:00:00]} (55. Kd2
$15) 55... Kg7 $1 {[%emt 0:00:00] Black is clearly winning.} 56. Ke3 {[%emt 0:
00:00]} Kh6 {[%emt 0:00:00] And now ...Nf5+ would win.} 57. Kd3 {[%emt 0:00:00]
} Nf5 {[%emt 0:00:00]} 58. Ng2 {[%emt 0:00:00] [#]} Ne7 $1 {[%emt 0:00:00]} 59.
Ke3 {[%emt 0:00:00] [#]} Ng6 $1 {[%emt 0:00:00]} 60. Kf3 {[%emt 0:00:00]} Kg7 {
[%emt 0:00:00]} 61. Ke3 {[%emt 0:00:00]} f6 {[%emt 0:00:00]} 62. exf6+ {
[%emt 0:00:00]} Kxf6 {[%emt 0:00:00]} 63. Kf2 {[%emt 0:00:00]} e5 {[%emt 0:00:
00][%cal Ye6e5,Ye5e4]} 64. Ke3 {[%emt 0:00:00]} Kf5 {[%emt 0:00:00]} 65. Ne1 {
[%emt 0:00:00]} e4 {[%emt 0:00:00]} 66. Ng2 {[%emt 0:00:00]} Kg4 {[%emt 0:00:
02]} 67. Kf2 {[%emt 0:00:00]} Nf4 {[%emt 0:02:52] Weighted Error Value:
White=0.82/Black=0.21 (precise)} 0-1

[Event "44th Chess Olympiad Open 2022"]
[Site "Chennai"]
[Date "2022.08.08"]
[Round "10.2"]
[White "Durarbayli, Vasif"]
[Black "Petrosyan, Manuel"]
[Result "1/2-1/2"]
[WhiteElo "2638"]
[BlackElo "2610"]
[Annotator "RC"]
[PlyCount "105"]
[EventDate "2022.??.??"]
[TimeControl "60"]

1. e4 {[%emt 0:00:04]} e5 {[%emt 0:02:10]} 2. Nf3 {[%emt 0:00:08]} Nc6 {
[%emt 0:00:05]} 3. Bc4 {[%emt 0:00:06]} Bc5 {[%emt 0:00:29]} 4. O-O {[%emt 0:
00:00]} Nf6 {[%emt 0:00:23]} 5. d3 {[%emt 0:00:05]} d6 {[%emt 0:00:53]} 6. c3 {
[%emt 0:00:09]} a5 {[%emt 0:00:50]} 7. Re1 {[%emt 0:00:06]} Ba7 {[%emt 0:02:01]
} 8. Nbd2 {[%emt 0:07:11]} O-O {[%emt 0:01:49]} 9. h3 {[%emt 0:05:50]} Be6 {
[%emt 0:10:57]} 10. Bb5 {[%emt 0:04:23]} Ne7 {[%emt 0:08:07]} 11. d4 {[%emt 0:
00:00]} c6 {[%emt 0:01:24]} 12. Bd3 {[%emt 0:01:26]} Ng6 {[%emt 0:00:10]} 13.
Nf1 {[%emt 0:03:20]} h6 {[%emt 0:04:04]} 14. Be3 {[%emt 0:08:24]} Re8 {[%emt 0:
00:00]} 15. Ng3 {[%emt 0:05:18]} Qc7 {[%emt 0:00:20]} 16. a4 {[%emt 0:01:59]}
Rad8 {[%emt 0:08:50]} 17. Qc2 {[%emt 0:02:55]} Bb8 {[%emt 0:05:51]} 18. Rad1 {
[%emt 0:00:27]} Qc8 {[%emt 0:08:17]} 19. b3 {[%emt 0:08:03]} Qc7 {[%emt 0:00:
00]} 20. b4 {[%emt 0:04:29]} axb4 {[%emt 0:04:08]} 21. cxb4 {[%emt 0:00:05]} d5
{[%emt 0:00:20]} 22. exd5 {[%emt 0:02:58]} Bxd5 {[%emt 0:03:29]} 23. Bxg6 {
[%emt 0:00:43]} Bxf3 {[%emt 0:00:16]} 24. gxf3 {[%emt 0:03:22]} exd4 {[%emt 0:
00:00]} 25. Bxh6 {[%emt 0:00:15]} gxh6 {[%emt 0:01:35]} 26. Qc4 {[%emt 0:14:56]
} Nd5 {[%emt 0:01:19]} 27. Rxe8+ {[%emt 0:04:00]} Rxe8 {[%emt 0:00:05]} 28. Bb1
{[%emt 0:00:04]} Nc3 {[%emt 0:03:09]} 29. Rxd4 {[%emt 0:03:22]} Ne2+ {[%emt 0:
00:00]} 30. Nxe2 {[%emt 0:10:31]} Qh2+ {[%emt 0:00:06]} 31. Kf1 {[%emt 0:00:01]
} Qxh3+ {[%emt 0:00:11]} 32. Ke1 {[%emt 0:00:07]} Qh1+ {[%emt 0:00:04]} 33. Kd2
{[%emt 0:00:04]} Qxb1 {[%emt 0:00:03]} 34. Rd7 {[%emt 0:02:07]} Qb2+ {[%emt 0:
00:00]} 35. Kd1 {[%emt 0:01:40]} Qf6 {[%emt 0:00:33]} 36. Qg4+ {[%emt 0:01:31]}
Kh8 {[%emt 0:00:45]} 37. Qd4 {[%emt 0:01:07]} Be5 {[%emt 0:00:13]} 38. Qc4 {
[%emt 0:01:28]} Rd8 {[%emt 0:04:01]} 39. Rxd8+ {[%emt 0:00:27]} Qxd8+ {[%emt 0:
00:00]} 40. Ke1 {[%emt 0:00:12]} Qf6 {[%emt 0:01:32]} 41. f4 {[%emt 0:33:55]}
Bd6 {[%emt 0:34:38]} 42. Kf1 {[%emt 0:00:57]} Kg8 {[%emt 0:00:00]} 43. b5 {
[%emt 0:00:00]} cxb5 {[%emt 0:00:00]} 44. Qxb5 {[%emt 0:00:00]} Qe7 {[%emt 0:
00:00]} 45. Qd5 {[%emt 0:00:00]} b6 {[%emt 0:00:00]} 46. Qc6 {[%emt 0:00:00]}
Qc7 {[%emt 0:00:00]} 47. Qg2+ {[%emt 0:00:00]} Kh8 {[%emt 0:00:00]} 48. Qe4 {
[%emt 0:00:00]} Kg8 {[%emt 0:00:00]} 49. Kg2 {[%emt 0:00:00]} Qe7 {[%emt 0:00:
00]} 50. Qa8+ {[%emt 0:00:00]} Kh7 {[%emt 0:00:00]} 51. Qf3 {[%emt 0:00:00]}
Qf6 {[%emt 0:00:00]} 52. Qd5 {[%emt 0:00:00]} Qe6 {[%emt 0:00:00]} 53. Qxe6 {
[%emt 0:00:00]} 1/2-1/2

[Event "44th Chess Olympiad Open 2022"]
[Site "Chennai"]
[Date "2022.08.08"]
[Round "10.2"]
[White "Melkumyan, Hrant"]
[Black "Guseinov, Gadir"]
[Result "1/2-1/2"]
[WhiteElo "2634"]
[BlackElo "2668"]
[Annotator "RC"]
[PlyCount "90"]
[EventDate "2022.??.??"]
[TimeControl "60"]

1. c4 {[%emt 0:00:07]} Nf6 {[%emt 0:00:43]} 2. Nc3 {[%emt 0:00:28]} g6 {
[%emt 0:00:10]} 3. d4 {[%emt 0:00:17]} Bg7 {[%emt 0:00:07]} 4. e4 {[%emt 0:00:
00]} d6 {[%emt 0:00:03]} 5. Be2 {[%emt 0:00:08]} O-O {[%emt 0:00:06]} 6. Nf3 {
[%emt 0:00:09]} e5 {[%emt 0:00:06]} 7. O-O {[%emt 0:00:13]} exd4 {[%emt 0:00:
00]} 8. Nxd4 {[%emt 0:00:09]} Re8 {[%emt 0:00:06]} 9. f3 {[%emt 0:00:16]} c6 {
[%emt 0:00:05]} 10. Kh1 {[%emt 0:00:36]} d5 {[%emt 0:00:19]} 11. cxd5 {[%emt 0:
00:00]} cxd5 {[%emt 0:00:03]} 12. Bg5 {[%emt 0:00:21]} Nc6 {[%emt 0:00:34]} 13.
Bb5 {[%emt 0:00:29]} h6 {[%emt 0:00:08]} 14. Bxf6 {[%emt 0:00:19]} Qxf6 {
[%emt 0:00:14]} 15. exd5 {[%emt 0:00:31]} Qxd4 {[%emt 0:00:04]} 16. Qxd4 {
[%emt 0:02:07]} Bxd4 {[%emt 0:00:13]} 17. dxc6 {[%emt 0:00:08]} Rf8 {[%emt 0:
00:00]} 18. Rfd1 {[%emt 0:01:07]} Be5 {[%emt 0:01:14]} 19. Re1 {[%emt 0:00:27]}
Bf6 {[%emt 0:02:17]} 20. c7 {[%emt 0:06:33]} Bxc3 {[%emt 0:00:51]} 21. bxc3 {
[%emt 0:00:10]} Be6 {[%emt 0:00:04]} 22. Rad1 {[%emt 0:00:56]} Rac8 {[%emt 0:
00:00]} 23. Bd7 {[%emt 0:00:07]} Rxc7 {[%emt 0:00:04]} 24. Bxe6 {[%emt 0:00:09]
} fxe6 {[%emt 0:00:03]} 25. Rxe6 {[%emt 0:00:08]} Kh7 {[%emt 0:00:08]} 26. h3 {
[%emt 0:10:46]} Rff7 {[%emt 0:17:02]} 27. Rd3 {[%emt 0:07:48]} Rc5 {[%emt 0:00:
00]} 28. Kh2 {[%emt 0:17:30]} h5 {[%emt 0:09:30]} 29. Kg3 {[%emt 0:14:45]} Rfc7
{[%emt 0:02:55]} 30. Ree3 {[%emt 0:07:50]} Kh6 {[%emt 0:11:42]} 31. f4 {
[%emt 0:01:53]} Ra5 {[%emt 0:01:48]} 32. Rd6 {[%emt 0:04:18]} Rxa2 {[%emt 0:00:
00]} 33. Ree6 {[%emt 0:02:36]} h4+ {[%emt 0:00:25]} 34. Kh2 {[%emt 0:00:27]}
Rg7 {[%emt 0:02:13]} 35. f5 {[%emt 0:00:15]} Rf2 {[%emt 0:01:34]} 36. Rxg6+ {
[%emt 0:17:50]} Rxg6 {[%emt 0:00:09]} 37. Rxg6+ {[%emt 0:00:23]} Kh5 {[%emt 0:
00:00]} 38. Rg7 {[%emt 0:00:07]} Rxf5 {[%emt 0:05:10]} 39. Rxb7 {[%emt 0:00:27]
} a5 {[%emt 0:00:22]} 40. c4 {[%emt 0:05:29]} Rf4 {[%emt 0:08:25]} 41. Rc7 {
[%emt 0:31:08]} a4 {[%emt 0:08:00]} 42. g4+ {[%emt 0:00:00]} hxg3+ {[%emt 0:00:
00]} 43. Kxg3 {[%emt 0:00:00]} Rd4 {[%emt 0:00:00]} 44. Kf3 {[%emt 0:00:00]} a3
{[%emt 0:00:00]} 45. Ra7 {[%emt 0:00:00]} Rxc4 {[%emt 0:00:00]} 1/2-1/2